bitfinex/quotes_ETHUSD_20240827
["timestamp","ask_amount","ask_price","bid_price","bid_amount"]
[1724767608102,2.3769,2605.1,2603.4,2.3997]
[1724767608937,3.83806,2605.5,2603.4,2.47651071]
[1724767609092,2.3769,2605.7,2603.5,0.29005321]
[1724767609291,2.3769,2605.7,2603.6,0.6267903]
[1724767609520,3.83718,2606.1,2603.7,3.84054]
[1724767609727,2.4945,2606.2,2603.9,6.10306]
[1724767609909,2.4945,2606.2,2604.0,4.04975991]
[1724767609910,6.33155,2606.2,2604.0,4.04975991]
[1724767610092,6.33155,2606.2,2604.0,0.97298449]
[1724767610093,3.83754,2605.9,2604.0,0.97298449]
[1724767610292,3.83759,2605.8,2604.1,0.32356845]
[1724767610627,7.94937726,2606.2,2604.1,0.32356845]
[1724767610989,7.94937726,2606.2,2604.2,0.07677522]
[1724767611238,7.94937726,2606.2,2604.3,0.5]
[1724767611399,5.45487726,2606.2,2604.4,0.0767661]
[1724767611593,5.45487726,2606.6,2604.5,2.4322]
[1724767611929,5.45487726,2606.6,2604.6,0.32765584]
[1724767612447,2.2575,2606.8,2604.6,3.32765584]
[1724767612943,6.26517,2607.4,2605.0,3.83864]
[1724767613094,5.45487726,2607.5,2605.5,2.4098]
[1724767613297,5.45487726,2607.9,2605.6,5.77258569]
[1724767613498,2.4045,2608.0,2605.6,5.77258569]
[1724767613499,5.45487726,2607.5,2605.7,3.0]
[1724767613937,5.45487726,2607.5,2605.8,0.07673567]
[1724767614095,5.45487726,2607.9,2605.6,3.24098]
[1724767614437,3.83483,2607.7,2605.7,1.11056573]
[1724767614670,9.28937726,2607.9,2605.9,3.83741]
[1724767614671,5.45487726,2607.9,2605.9,3.83741]
[1724767614875,5.45487726,2607.9,2606.0,5.88683574]
[1724767615085,3.83423,2608.1,2606.0,5.88683574]
[1724767615086,5.45487726,2608.3,2606.0,5.88683574]
[1724767615386,2.78524142,2608.7,2606.3,9.67561726]
[1724767615387,3.83348,2608.6,2606.3,9.67561726]
[1724767615528,5.45487726,2608.3,2606.4,3.96756173]
[1724767615881,2.3566,2608.7,2606.4,3.96756173]
[1724767615882,3.83479,2607.7,2606.4,3.0]
[1724767616019,3.83479,2607.7,2606.1,2.4314]
[1724767616020,3.83479,2607.7,2606.2,3.0]
[1724767616224,5.45487726,2607.9,2606.3,0.07672676]
[1724767616458,3.83424,2608.1,2606.2,3.0]
[1724767616459,3.83437,2608.0,2606.2,3.0]
[1724767616668,5.45487726,2607.9,2606.2,3.57136814]
[1724767617169,5.45487726,2607.9,2606.2,3.0]
[1724767617321,3.83496,2607.6,2606.2,3.0]
[1724767617524,5.45487726,2607.5,2606.1,2.4314]
[1724767617787,2.4205,2607.8,2605.0,2.3984]
[1724767617788,5.45487726,2607.1,2605.0,2.3984]
[1724767618075,9.29065726,2607.1,2605.0,2.3984]
[1724767618321,0.55,2607.0,2605.0,2.3984]
[1724767618476,4.38582,2607.0,2605.1,0.23984]
[1724767618775,0.55,2607.0,2605.1,0.23984]
[1724767618969,9.28998726,2607.5,2605.1,5.69471726]
[1724767619141,0.55,2607.4,2605.6,2.3984]
[1724767619343,0.7,2608.4,2605.3,3.83832]
[1724767619344,4.26233142,2608.5,2605.7,3.91441474]
[1724767619533,3.83421,2608.1,2605.9,6.23584]
[1724767619730,3.83421,2608.1,2606.0,3.07671614]
[1724767619962,2.4205,2608.4,2606.0,3.07671614]
[1724767620267,3.83416,2608.2,2606.2,2.3984]
[1724767620443,2.4205,2608.4,2606.3,0.07672023]
[1724767620640,9.28837726,2608.6,2606.3,1.13945461]
[1724767620854,3.83402,2608.3,2606.3,4.06273438]
[1724767621056,3.83407,2608.2,2606.4,0.07671264]
[1724767621259,9.28841726,2608.6,2606.5,2.3984]
[1724767621574,9.28841726,2608.6,2606.6,0.07670664]
[1724767621781,2.4205,2608.9,2606.7,2.285]
[1724767621929,9.28781726,2609.0,2606.8,0.07669838]
[1724767622130,3.83347,2608.7,2606.8,1.61815785]
[1724767622335,3.8336,2608.6,2606.8,4.61815785]
[1724767622632,3.8336,2608.6,2606.9,0.69031579]
[1724767622864,3.8336,2608.6,2607.0,0.07670394]
[1724767623032,3.83365,2608.5,2607.0,0.07670394]
[1724767623231,3.83359,2608.6,2607.0,0.07670394]
[1724767623445,5.45487726,2608.6,2607.0,0.07670335]
[1724767623692,3.83312,2608.9,2607.0,0.07670335]
[1724767623853,5.45487726,2609.0,2607.1,2.4718]
[1724767624193,0.42864142,2609.8,2607.6,3.83494]
[1724767624194,5.45487726,2609.8,2607.6,3.83494]
[1724767624393,7.6666,2609.7,2607.7,5.3169]
[1724767624544,7.6666,2609.7,2607.8,0.07666886]
[1724767624744,7.6666,2609.7,2607.9,2.3169]
[1724767625050,5.45487726,2609.2,2608.1,2.3169]
[1724767625247,5.45487726,2609.2,2607.5,2.3169]
[1724767625248,7.6666,2609.1,2607.5,2.3169]
[1724767625558,3.83293,2609.0,2607.5,2.3169]
[1724767625757,3.8337,2608.5,2607.5,2.3169]
[1724767625975,11.50045,2608.4,2607.5,2.3169]
[1724767626200,7.6666,2608.4,2607.5,2.3169]
[1724767626563,3.834,2608.3,2607.5,2.3169]
[1724767626765,7.6666,2608.4,2606.4,2.2897]
[1724767626766,3.83421,2608.1,2606.4,2.2897]
[1724767626967,3.83524,2607.4,2606.4,2.2897]
[1724767627193,5.45487726,2607.2,2606.4,2.2897]
[1724767627466,5.45487726,2607.2,2605.0,2.4899]
[1724767627467,3.83625,2606.8,2605.0,2.4899]
[1724767627675,0.55,2607.1,2605.2,2.4899]
[1724767627976,7.6666,2607.0,2605.3,0.07674919]
[1724767628182,7.6666,2607.0,2604.7,0.44012318]
[1724767628183,7.6666,2607.0,2605.4,2.4899]
[1724767628375,5.45487726,2606.8,2605.4,2.4899]
[1724767628575,8.2166,2606.7,2605.4,2.4899]
[1724767629376,3.83655,2606.6,2605.4,2.4899]
[1724767629569,7.6666,2606.5,2605.5,0.07675867]
[1724767629769,7.6666,2606.5,2605.5,0.07674687]
[1724767630078,7.6666,2606.5,2605.5,0.28156369]
[1724767630288,7.6666,2606.5,2605.5,0.35831644]
[1724767630604,7.6666,2606.5,2605.5,0.07675275]
[1724767630781,3.8376,2605.8,2603.7,0.79646359]
[1724767630984,3.8376,2605.8,2603.3,5.81842117]
[1724767630985,5.45487726,2604.7,2603.8,2.4741]
[1724767631236,3.0,2606.1,2603.8,2.87217621]
[1724767631237,7.6666,2604.6,2603.8,2.87217621]
[1724767631374,3.83965,2604.4,2603.8,0.39807621]
[1724767631568,3.83965,2604.4,2603.1,2.71778444]
[1724767631569,3.83965,2604.4,2603.1,2.3175]
[1724767631570,7.6666,2604.3,2603.1,2.3175]
[1724767631771,11.50645,2604.3,2603.1,2.3175]
[1724767632074,7.6666,2604.3,2603.2,0.07682472]
[1724767632422,13.12147726,2604.3,2602.7,2.4547]
[1724767632714,13.12147726,2604.3,2602.8,0.24547]
[1724767632715,7.6666,2604.3,2602.8,0.24547]
[1724767632914,7.6666,2604.3,2603.0,2.4547]
[1724767633069,7.6666,2604.3,2603.1,0.07680816]
[1724767633271,7.6666,2604.3,2603.1,0.58656359]
[1724767633506,7.6666,2604.3,2603.2,2.3014]
[1724767633707,7.6666,2604.3,2603.3,0.82660327]
[1724767634020,7.6666,2604.3,2602.8,0.24547]
[1724767634021,3.83658,2606.5,2604.0,2.3014]
[1724767634222,3.83658,2606.5,2604.6,2.3014]
[1724767634555,7.6759,2606.4,2604.7,0.30690501]
[1724767634732,7.6759,2606.4,2604.8,0.0767577]
[1724767634941,3.83713,2606.2,2604.7,3.23014]
[1724767635142,7.6759,2606.4,2604.7,3.0]
[1724767635451,6.11794,2606.2,2604.6,2.3014]
[1724767635663,7.6759,2606.1,2604.6,2.3014]
[1724767636156,7.6759,2606.1,2604.7,0.07677269]
[1724767636361,7.6759,2606.1,2604.9,2.4573]
[1724767636571,3.83451,2607.9,2605.9,5.45487726]
[1724767636867,3.83421,2608.1,2606.0,2.4573]
[1724767637149,2.4712,2608.2,2606.0,5.4573]
[1724767637320,3.83538,2607.3,2606.0,2.4573]
[1724767637525,8.46820148,2608.1,2606.0,2.70303]
[1724767637526,7.6714,2607.2,2606.0,2.70303]
[1724767637739,7.6714,2607.2,2606.1,3.07674161]
[1724767637928,7.6714,2607.2,2606.1,3.0]
[1724767638131,7.6714,2607.2,2606.0,2.4573]
[1724767638311,7.6714,2607.2,2604.8,2.4996]
[1724767638312,3.83613,2606.8,2604.8,2.4996]
[1724767638663,7.6714,2606.7,2605.0,3.0]
[1724767638951,7.6714,2606.7,2604.9,0.27374173]
[1724767638952,7.6714,2606.7,2604.9,3.27374173]
[1724767639161,0.55,2606.6,2604.9,0.27374173]
[1724767639323,3.83673,2606.4,2604.9,3.27374173]
[1724767639513,0.55,2606.3,2604.9,3.0]
[1724767639715,7.6714,2606.5,2605.0,0.07676876]
[1724767640052,7.6714,2606.5,2605.1,2.4996]
[1724767640261,7.6714,2606.5,2605.2,0.25763688]
[1724767640738,5.45487726,2606.4,2605.2,3.0]
[1724767640905,7.6714,2606.5,2605.2,3.0]
[1724767641238,7.6714,2606.5,2605.4,2.4644]
[1724767641554,7.6714,2606.5,2605.4,5.4644]
[1724767641760,7.6714,2606.5,2605.4,6.01084]
[1724767641971,7.6714,2606.5,2605.4,5.4644]
[1724767642104,7.6714,2606.5,2605.4,2.4644]
[1724767642309,3.83685,2606.3,2605.4,2.4644]
[1724767642545,7.6714,2606.5,2605.4,2.4644]
[1724767643221,3.8369,2606.3,2605.4,2.4644]
[1724767643425,13.12627726,2606.2,2604.8,2.467]
[1724767643809,13.12627726,2606.2,2604.8,2.7137]
[1724767644024,3.83745,2605.9,2604.8,2.467]
[1724767644239,5.45487726,2605.8,2604.8,2.467]
[1724767644423,0.55,2606.1,2604.8,2.467]
[1724767644633,13.12627726,2606.2,2604.9,0.07677521]
[1724767644831,3.83719,2606.1,2604.8,2.7137]
[1724767645035,3.83774,2605.7,2604.8,2.467]
[1724767645255,0.55,2606.0,2603.7,2.486]
[1724767645463,3.83801,2605.6,2603.8,0.58870546]
[1724767645668,3.83818,2605.4,2603.8,0.58870546]
[1724767645883,3.83761,2605.8,2603.9,2.4021]
[1724767646065,0.55,2606.1,2604.0,0.07678051]
[1724767646272,3.83745,2605.9,2604.1,0.07678612]
[1724767646467,5.45487726,2606.0,2604.1,2.54648612]
[1724767646791,5.45487726,2605.6,2604.2,2.4697]
[1724767647065,5.45487726,2604.8,2603.7,0.39806691]
[1724767647245,5.45487726,2604.8,2604.0,2.4697]
[1724767647777,5.45487726,2604.8,2604.0,2.71667]
[1724767648064,11.50946,2605.5,2604.0,2.71667]
[1724767648065,5.45487726,2605.2,2604.1,0.07678905]
[1724767648216,5.45487726,2605.2,2604.0,2.71667]
[1724767648420,5.45487726,2605.2,2604.1,3.271667]
[1724767648647,5.45487726,2605.2,2604.2,0.07679622]
[1724767648921,5.45487726,2605.2,2604.1,3.0]
[1724767648922,9.29339726,2605.2,2604.1,3.0]
[1724767649154,5.45487726,2605.2,2604.1,0.62376792]
[1724767649323,5.45487726,2605.2,2604.1,0.07679792]
[1724767649524,3.83759,2605.8,2604.1,3.07679792]
[1724767649838,5.45487726,2605.4,2604.2,0.55464979]
[1724767650034,5.45487726,2605.4,2604.1,3.0]
[1724767650035,3.83861,2605.2,2604.1,3.0]
[1724767650238,2.367,2606.2,2604.2,2.94617]
[1724767650457,3.83755,2605.9,2604.3,3.0]
[1724767650659,2.4313,2606.7,2604.5,2.4539]
[1724767650877,3.83671,2606.4,2604.6,0.07676296]
[1724767651021,3.83671,2606.4,2604.6,3.62982926]
[1724767651222,3.83741,2606.0,2604.6,3.5530663]
[1724767651438,0.05,2605.9,2604.7,0.07677372]
[1724767651666,0.05,2605.9,2604.7,0.68514772]
[1724767651967,0.05,2605.9,2604.8,0.07677372]
[1724767652122,0.05,2605.9,2604.7,0.608374]
[1724767652759,0.05,2605.9,2604.8,0.07677222]
[1724767652931,0.05,2605.9,2604.8,0.44528684]
[1724767653267,0.05,2606.0,2604.9,2.2894]
[1724767653568,0.05,2606.0,2605.0,0.0767627]
[1724767653732,3.8874,2606.0,2604.9,5.2894]
[1724767653932,3.8874,2606.0,2604.9,2.2894]
[1724767654235,3.8874,2606.0,2603.8,7.43366632]
[1724767654236,3.83823,2605.4,2604.3,2.4459]
[1724767654453,0.05,2605.3,2604.3,2.4459]
[1724767654653,5.45487726,2605.1,2604.3,2.4459]
[1724767654965,0.05,2605.0,2604.3,2.4459]
[1724767656058,5.45487726,2604.5,2603.2,2.457]
[1724767656236,0.05,2605.0,2603.2,2.457]
[1724767656237,5.45487726,2603.8,2603.2,2.457]
[1724767656441,0.05,2603.9,2603.3,0.07682644]
[1724767656688,0.05,2604.3,2603.3,0.32252644]
[1724767656841,0.05,2604.9,2603.4,2.3651]
[1724767657046,0.05,2604.9,2603.5,0.07679801]
[1724767657273,6.19771,2605.5,2603.6,2.3651]
[1724767657274,3.83865,2605.1,2603.6,2.3651]
[1724767657589,5.45487726,2604.7,2603.6,2.3651]
[1724767657883,3.83961,2604.5,2603.6,2.3651]
[1724767658083,0.05,2604.4,2603.6,2.3651]
[1724767658849,5.45487726,2604.3,2603.6,2.3651]
[1724767659097,3.83943,2604.6,2603.0,2.3443]
[1724767659098,5.45487726,2603.9,2603.0,2.3443]
[1724767659305,5.45487726,2603.9,2602.9,0.39635537]
[1724767659306,3.83808,2605.5,2603.2,2.3443]
[1724767659471,3.83843,2605.3,2603.3,2.48030482]
[1724767659804,0.05,2605.2,2603.4,2.65153048]
[1724767659967,0.05,2605.2,2603.5,2.480293]
[1724767660354,5.45487726,2605.0,2603.5,2.4035]
[1724767660572,0.05,2604.9,2603.6,0.26515305]
[1724767660763,0.05,2604.9,2603.7,0.07679535]
[1724767661310,0.05,2604.9,2603.6,3.26515305]
[1724767661607,0.05,2604.9,2603.7,0.56686531]
[1724767662188,5.45487726,2604.5,2603.6,3.26515305]
[1724767662372,0.05,2604.4,2603.5,2.4035]
[1724767662869,0.05,2604.7,2603.6,0.07680975]
[1724767663158,0.05,2604.7,2603.6,0.24803098]
[1724767663515,0.05,2604.7,2603.6,0.32483688]
[1724767663901,0.05,2604.8,2603.7,2.4803]
[1724767664101,3.83724,2606.1,2603.8,0.07678851]
[1724767664102,5.45487726,2604.9,2603.8,0.07678851]
[1724767664304,5.45487726,2605.3,2603.9,2.4803]
[1724767664533,0.05,2605.2,2604.0,0.38806352]
[1724767664744,0.05,2605.2,2604.1,2.4803]
[1724767664913,0.05,2605.2,2604.3,2.3673]
[1724767665111,0.05,2605.2,2603.9,3.0]
[1724767665112,0.05,2605.6,2604.5,2.3673]
[1724767665419,0.05,2605.6,2604.6,0.23673]
[1724767665620,7.81050751,2607.2,2604.6,3.31349599]
[1724767665621,5.50487726,2606.1,2604.6,3.31349599]
[1724767665821,5.50487726,2606.1,2604.7,2.3673]
[1724767666019,5.50487726,2606.1,2604.8,0.64484324]
[1724767666466,5.50487726,2606.1,2604.8,3.64484324]
[1724767666755,0.05,2606.0,2604.9,2.281]
[1724767666920,0.05,2606.4,2605.0,0.07675654]
[1724767667121,5.45487726,2606.1,2605.0,0.23577565]
[1724767667326,0.05,2606.0,2605.0,3.0]
[1724767667547,0.05,2606.0,2604.9,2.281]
[1724767667548,5.45487726,2605.6,2604.9,2.281]
[1724767667745,0.05,2605.5,2604.9,2.281]
[1724767668074,0.05,2605.5,2604.9,2.5091]
[1724767668216,3.83578,2607.1,2604.9,2.5091]
[1724767668217,0.05,2606.2,2605.0,3.07677217]
[1724767668416,0.05,2606.2,2605.1,2.3884]
[1724767668637,0.05,2606.2,2605.2,0.24651722]
[1724767669065,5.45487726,2606.0,2605.2,3.24651722]
[1724767669354,0.05,2605.9,2605.3,0.07675653]
[1724767669540,0.05,2606.3,2605.3,0.64024825]
[1724767669743,0.05,2606.3,2605.4,0.38867655]
[1724767670559,0.05,2606.3,2605.5,0.07675148]
[1724767670720,3.83584,2607.0,2605.6,2.4944]
[1724767670721,0.05,2607.0,2605.6,2.4944]
[1724767670918,0.05,2607.4,2605.8,2.4944]
[1724767671135,0.05,2607.4,2605.7,0.33384625]
[1724767671136,0.05,2607.4,2606.1,2.4944]
[1724767671330,0.05,2607.4,2606.2,0.07671492]
[1724767671628,0.05,2607.7,2606.1,5.4944]
[1724767671971,3.88485,2607.7,2606.2,0.97944]
[1724767672146,5.45487726,2607.5,2606.2,3.97944]
[1724767672456,0.05,2607.6,2606.3,2.53571901]
[1724767672762,0.05,2607.6,2606.5,2.459]
[1724767672931,0.05,2607.6,2606.6,0.07670807]
[1724767673135,0.05,2607.6,2606.6,3.63027888]
[1724767673330,0.05,2607.8,2606.6,3.63027888]
[1724767673669,0.05,2607.8,2606.7,2.459]
[1724767673980,0.05,2607.8,2606.8,0.07670806]
[1724767674117,5.45487726,2607.5,2606.7,5.53571836]
[1724767674316,0.05,2607.8,2606.7,6.0049]
[1724767674515,0.05,2608.2,2606.8,0.07670184]
[1724767674723,0.05,2608.2,2606.8,0.68486202]
[1724767674928,0.05,2608.2,2606.9,2.4385]
[1724767675244,0.05,2608.8,2607.0,2.50128859]
[1724767675442,0.05,2608.8,2607.2,2.4246]
[1724767675653,0.05,2608.8,2607.3,0.07668648]
[1724767675863,0.05,2608.8,2607.4,2.3295]
[1724767676041,5.45487726,2609.0,2607.5,0.07667815]
[1724767676369,0.05,2608.9,2607.6,2.3295]
[1724767676574,0.05,2608.9,2607.7,0.24061781]
[1724767676730,5.45487726,2608.6,2607.7,0.24061781]
[1724767676926,0.05,2608.5,2607.7,3.24061781]
[1724767677127,0.05,2608.5,2607.8,0.55701178]
[1724767677523,0.05,2609.0,2607.8,0.55701178]
[1724767677730,0.05,2609.0,2608.0,2.3295]
[1724767677980,0.05,2609.0,2608.1,0.07666837]
[1724767678159,0.05,2609.0,2608.1,0.324953]
[1724767678359,0.05,2609.0,2608.1,3.324953]
[1724767679469,0.05,2609.0,2608.1,3.0]
[1724767679782,9.28762726,2609.1,2608.2,0.0766714]
[1724767679783,0.05,2609.1,2608.2,0.0766714]
[1724767679929,0.05,2609.4,2608.3,2.4945]
[1724767680133,5.45487726,2609.2,2608.4,0.07666315]
[1724767680384,0.05,2609.1,2608.4,0.07666004]
[1724767680547,0.05,2609.1,2608.4,3.0]
[1724767680733,0.05,2609.1,2608.4,3.07666726]
[1724767680927,0.05,2609.1,2608.4,3.07666724]
[1724767681133,0.05,2609.1,2608.4,3.58282844]
[1724767681355,0.05,2609.1,2608.4,3.0]
[1724767681727,5.50487726,2609.2,2608.4,3.07666808]
[1724767682059,5.45487726,2609.6,2608.4,3.07666808]
[1724767682230,0.05,2610.3,2608.6,2.4945]
[1724767682431,5.45487726,2609.6,2608.8,2.4945]
[1724767682675,9.28697726,2609.6,2608.8,2.4945]
[1724767682845,5.45487726,2609.2,2608.8,2.4945]
[1724767683040,0.44018904,2610.4,2608.8,2.74395]
[1724767683041,3.83179,2609.8,2608.8,2.74395]
[1724767683249,3.88098,2610.3,2609.0,2.4158]
[1724767683479,5.50487726,2610.2,2609.1,0.07663835]
[1724767683656,5.50487726,2610.2,2609.1,0.57668334]
[1724767683834,5.50487726,2610.2,2609.2,0.07663198]
[1724767684034,5.50487726,2610.2,2609.3,2.3383]
[1724767684333,5.50487726,2610.2,2609.4,0.07663044]
[1724767684973,0.05,2610.6,2609.4,0.07663044]
[1724767685134,3.8304,2610.7,2609.4,3.54149304]
[1724767685337,0.05,2610.8,2609.6,2.4613]
[1724767685535,0.05,2611.1,2609.8,2.4613]
[1724767685737,0.05,2611.1,2609.9,1.0604002]
[1724767686001,0.05,2611.1,2609.9,4.0604002]
[1724767686276,0.05,2611.1,2609.9,3.98379124]
[1724767686437,0.1254003,2611.2,2610.0,5.57130955]
[1724767686783,0.1254003,2611.2,2610.1,0.65551008]
[1724767687071,5.45487726,2611.1,2610.1,3.65551008]
[1724767687282,5.50487726,2611.1,2610.1,3.65551008]
[1724767687443,0.1254003,2611.2,2610.2,2.32860287]
[1724767687645,0.1254003,2611.2,2610.4,2.4036]
[1724767687866,0.1254003,2611.2,2610.6,2.4036]
[1724767688067,0.1254003,2611.2,2610.7,0.0765811]
[1724767688252,0.1254003,2611.2,2610.9,2.4036]
[1724767688449,0.1254003,2611.2,2611.0,0.32459804]
[1724767688855,0.1254003,2611.2,2611.0,3.32459804]
[1724767689351,0.1254003,2611.2,2611.1,2.48017405]
[1724767689549,0.1254003,2611.2,2611.1,5.48017405]
[1724767689780,0.1254003,2611.2,2611.1,5.4036]
[1724767690294,0.1254003,2611.2,2610.8,2.4846]
[1724767691304,0.1254003,2611.2,2609.5,2.3398]
[1724767691305,0.1754003,2611.2,2609.5,2.3398]
[1724767691507,2.4112,2610.8,2609.5,2.3398]
[1724767691711,2.4112,2610.8,2608.0,2.4768]
[1724767691712,3.83126,2610.2,2608.0,2.4768]
[1724767691920,3.83126,2610.2,2608.3,3.83386]
[1724767691921,0.05,2610.2,2608.3,3.83386]
[1724767692068,3.88117,2610.2,2608.4,2.4768]
[1724767692402,3.88117,2610.2,2608.3,0.52573652]
[1724767692403,5.50487726,2610.2,2608.5,2.3453]
[1724767692765,5.50487726,2610.2,2608.7,2.41]
[1724767692766,5.45487726,2610.2,2608.7,2.41]
[1724767692992,5.45487726,2610.2,2608.8,2.65866324]
[1724767693300,5.45487726,2609.8,2608.8,2.41]
[1724767693558,0.05,2609.7,2608.8,2.41]
[1724767693666,5.45487726,2609.8,2608.8,2.41]
[1724767693868,5.45487726,2609.8,2608.9,0.241]
[1724767694506,0.05,2610.1,2608.9,0.241]
[1724767694723,0.05,2610.1,2609.0,0.07663804]
[1724767695012,5.45487726,2610.2,2609.1,2.41]
[1724767695168,5.45487726,2610.6,2609.2,0.32528572]
[1724767695365,5.50487726,2610.6,2609.3,0.07662185]
[1724767695568,5.45487726,2611.0,2609.4,2.41]
[1724767695804,0.05,2610.9,2609.4,5.41]
[1724767696033,5.45487726,2610.6,2609.4,5.41]
[1724767696169,5.45487726,2610.2,2609.4,5.41]
[1724767696507,0.05,2610.1,2609.4,5.41]
[1724767696670,5.45487726,2610.2,2609.5,0.07663267]
[1724767697019,5.45487726,2610.2,2609.5,3.0]
[1724767697171,5.45487726,2610.2,2609.6,0.07662777]
[1724767697376,0.05,2610.1,2609.4,2.41]
[1724767697719,5.45487726,2609.8,2608.9,2.2895]
[1724767697873,0.05,2610.1,2609.0,1.03]
[1724767698069,0.05,2610.1,2608.9,2.2895]
[1724767700393,5.50487726,2610.2,2609.0,0.0766363]
[1724767700601,5.45487726,2610.2,2609.1,0.07663101]
[1724767700823,5.45487726,2610.2,2609.2,0.55]
[1724767701017,5.45487726,2610.2,2609.3,0.07662398]
[1724767701413,0.05,2610.1,2609.0,3.22895]
[1724767701612,0.05,2610.1,2609.1,0.551845]
[1724767702052,6.3694203,2611.2,2609.3,2.3456]
[1724767702201,5.50487726,2611.1,2609.7,7.3]
[1724767702398,5.45487726,2610.7,2609.8,3.0]
[1724767702712,9.28610726,2610.2,2609.4,7.3]
[1724767702902,0.05,2610.1,2609.4,7.3]
[1724767703099,5.45487726,2609.8,2609.4,0.96456]
[1724767703339,5.45487726,2609.8,2608.8,2.2618]
[1724767703663,0.05,2609.7,2608.8,2.2618]
[1724767703824,0.05,2609.7,2608.2,12.26]
[1724767703825,5.45487726,2609.4,2608.3,2.4309]
[1724767704039,5.45487726,2609.4,2608.3,3.6569]
[1724767704203,3.0,2610.3,2608.3,3.6569]
[1724767704204,3.83188,2609.7,2608.3,3.6569]
[1724767704407,0.05,2609.6,2608.4,1.09569]
[1724767704815,0.05,2609.7,2608.4,1.09569]
[1724767705436,0.55,2610.2,2608.6,2.4894]
[1724767705437,5.45487726,2610.2,2608.6,2.4894]
[1724767705645,0.05,2610.1,2608.7,0.33323565]
[1724767705802,5.50487726,2610.2,2608.7,0.33323565]
[1724767705999,5.50487726,2610.2,2608.8,0.55]
[1724767706206,5.45487726,2610.2,2609.0,2.4775]
[1724767706505,5.45487726,2610.2,2609.1,0.0766272]
[1724767706809,5.45487726,2610.2,2609.1,3.0766272]
[1724767707421,2.4749,2610.8,2609.1,3.0]
[1724767707422,5.45487726,2609.7,2609.1,3.0]
[1724767707633,5.45487726,2609.7,2609.0,5.4775]
[1724767707943,5.45487726,2609.7,2609.0,2.72525]
[1724767708100,3.83217,2609.5,2608.6,2.491]
[1724767708301,2.3646,2610.0,2608.6,2.491]
[1724767708302,9.28732726,2609.3,2608.6,2.491]
[1724767708547,5.45487726,2609.3,2608.6,2.491]
[1724767708797,5.45487726,2609.3,2608.7,0.2491]
[1724767708957,5.45487726,2609.7,2608.8,0.07664963]
[1724767709791,9.28673726,2609.7,2608.8,0.07664963]
[1724767709974,5.45487726,2609.3,2608.7,0.2491]
[1724767710148,5.45487726,2609.3,2608.2,7.3]
[1724767710149,5.45487726,2608.9,2608.2,9.791]
[1724767710345,0.05,2608.8,2608.2,7.3]
[1724767710842,2.3646,2609.2,2608.2,7.3]
[1724767710843,3.83297,2609.0,2608.2,7.3]
[1724767711046,5.45487726,2608.6,2608.3,0.07667347]
[1724767711541,5.50487726,2609.1,2608.3,0.81434082]
[1724767712594,9.33769726,2609.1,2608.3,0.81434082]
[1724767713101,5.50487726,2609.1,2608.3,0.81434082]
[1724767713275,5.45487726,2609.1,2608.3,0.81434082]
[1724767713474,7.45,2609.6,2608.5,2.4408]
[1724767713475,2.3199,2609.6,2608.5,2.4408]
[1724767713674,0.05,2609.5,2608.6,0.0766511]
[1724767714001,0.05,2609.5,2608.6,4.13953962]
[1724767714172,0.05,2609.4,2608.6,4.13953962]
[1724767714373,3.88238,2609.4,2608.6,4.13953962]
[1724767714714,5.45487726,2608.7,2608.5,7.3]
[1724767714895,0.05,2608.6,2608.1,7.3]
[1724767715099,3.83406,2608.2,2607.7,7.3]
[1724767715284,3.83451,2607.9,2607.4,7.3]
[1724767715609,0.05,2607.8,2607.4,7.3]
[1724767715758,3.83426,2608.1,2607.4,7.3]
[1724767715759,0.05,2608.0,2607.4,7.3]
[1724767716300,0.05,2608.0,2607.0,7.37669702]
[1724767716468,5.45487726,2607.8,2607.0,8.85150702]
[1724767716661,0.05,2607.7,2607.1,3.0]
[1724767716985,0.05,2607.9,2607.1,3.0]
[1724767717193,5.45487726,2607.6,2607.1,5.403481]
[1724767717707,3.83537,2607.4,2606.5,7.3]
[1724767717918,2.3582,2607.2,2606.5,7.3]
[1724767718117,5.45487726,2606.6,2606.2,19.56]
[1724767718411,5.45487726,2606.6,2605.6,0.79646359]
[1724767718412,0.05,2606.5,2605.9,7.3]
[1724767718720,0.05,2606.5,2606.0,0.73]
[1724767718860,5.45487726,2606.6,2606.0,0.80673825]
[1724767719565,5.45487726,2606.2,2605.9,7.3]
[1724767719795,5.45487726,2606.6,2605.9,7.3]
[1724767719984,0.05,2606.5,2606.0,0.73]
[1724767720159,5.45487726,2606.2,2605.9,7.3]
[1724767720603,5.50487726,2606.2,2605.5,7.3]
[1724767720807,5.45487726,2606.2,2605.6,0.73]
[1724767720988,5.45487726,2606.6,2605.6,0.73]
[1724767721189,5.45487726,2606.6,2605.5,7.3]
[1724767721190,5.45487726,2605.8,2605.5,7.3]
[1724767722886,5.45487726,2605.8,2605.6,3.0]
[1724767723207,5.45487726,2606.2,2605.6,3.07675175]
[1724767723509,5.45487726,2606.2,2605.7,1.03]
[1724767723817,5.45487726,2606.2,2605.8,0.07674284]
[1724767723998,5.45487726,2606.2,2605.6,3.07674174]
[1724767724185,0.05,2606.1,2605.6,3.0]
[1724767724513,5.45487726,2606.2,2605.6,4.10674651]
[1724767725374,5.45487726,2605.7,2604.9,7.3]
[1724767725581,5.45487726,2605.0,2604.9,7.3]
[1724767725784,5.45487726,2605.0,2604.4,9.7645]
[1724767726027,5.45487726,2605.5,2604.5,0.07677207]
[1724767726173,2.4846,2605.8,2604.5,0.07677207]
[1724767726174,0.05,2605.4,2604.5,0.98412721]
[1724767726370,0.05,2605.4,2604.4,7.3]
[1724767726371,3.82934,2605.3,2604.4,7.3]
[1724767726620,6.25408,2605.2,2604.0,7.3]